[Event "*** SCC Grand Prix: Titled Tuesday Blitz"]
[Site "Chess.com"]
[Date "2020.07.21"]
[Round "8"]
[White "jb2mix"]
[Black "ChessAurochs"]
[Result "0-1"]
[WhiteElo "2673"]
[BlackElo "2589"]
[TimeControl "180+1"]
[EndTime "11:37:11 PDT"]
[Termination "ChessAurochs won on time"]

1. e4 {[%clk 0:03:00]} 1... c6 {[%clk 0:02:53.7]} 2. d4 {[%clk 0:03:00.1]} 2...
d5 {[%clk 0:02:54.6]} 3. Nc3 {[%clk 0:03:00.7]} 3... dxe4 {[%clk 0:02:53.1]} 4.
Nxe4 {[%clk 0:03:01.6]} 4... Nf6 {[%clk 0:02:53.9]} 5. Nxf6+ {[%clk 0:03:02]}
5... exf6 {[%clk 0:02:54.8]} 6. c3 {[%clk 0:03:01.3]} 6... Bd6 {[%clk
0:02:54.1]} 7. Bd3 {[%clk 0:03:01.9]} 7... O-O {[%clk 0:02:54.6]} 8. Qc2 {[%clk
0:03:02.8]} 8... Re8+ {[%clk 0:02:54.8]} 9. Ne2 {[%clk 0:03:03.7]} 9... h5
{[%clk 0:02:55.3]} 10. Be3 {[%clk 0:03:04.5]} 10... h4 {[%clk 0:02:55]} 11. g3
{[%clk 0:02:55.2]} 11... h3 {[%clk 0:02:46.6]} 12. Bh7+ {[%clk 0:02:50.7]} 12...
Kh8 {[%clk 0:02:42.8]} 13. Bf5 {[%clk 0:02:51.6]} 13... Bxf5 {[%clk 0:02:27.2]}
14. Qxf5 {[%clk 0:02:52.5]} 14... Qd7 {[%clk 0:02:27.8]} 15. Qxd7 {[%clk
0:02:45.5]} 15... Nxd7 {[%clk 0:02:28.7]} 16. Ng1 {[%clk 0:02:45.9]} 16... Nb6
{[%clk 0:02:22.8]} 17. Nxh3 {[%clk 0:02:38.6]} 17... Nc4 {[%clk 0:02:22.3]} 18.
Ke2 {[%clk 0:02:39.2]} 18... Re7 {[%clk 0:02:13.3]} 19. Kf3 {[%clk 0:02:17.9]}
19... Nxb2 {[%clk 0:02:09.7]} 20. Bf4 {[%clk 0:02:11.9]} 20... Bxf4 {[%clk
0:01:55.1]} 21. Nxf4 {[%clk 0:02:12.8]} 21... Nc4 {[%clk 0:01:55.6]} 22. Rhd1
{[%clk 0:01:50.6]} 22... g6 {[%clk 0:01:47.2]} 23. h4 {[%clk 0:01:45.4]} 23...
Kg7 {[%clk 0:01:46]} 24. Nd3 {[%clk 0:01:44.2]} 24... Rd8 {[%clk 0:01:40.2]} 25.
Rab1 {[%clk 0:01:40.8]} 25... b6 {[%clk 0:01:38.3]} 26. Rb4 {[%clk 0:01:39.3]}
26... Nd6 {[%clk 0:01:35.1]} 27. Ra4 {[%clk 0:01:23]} 27... Nf5 {[%clk
0:01:28.5]} 28. Nb4 {[%clk 0:01:18.7]} 28... Rd6 {[%clk 0:01:21.9]} 29. Rh1
{[%clk 0:01:14.2]} 29... c5 {[%clk 0:01:18.2]} 30. Nc2 {[%clk 0:01:08.5]} 30...
cxd4 {[%clk 0:00:57.7]} 31. cxd4 {[%clk 0:00:50.6]} 31... Rc7 {[%clk 0:00:54.9]}
32. g4 {[%clk 0:00:30.1]} 32... Rc3+ {[%clk 0:00:43.8]} 33. Kg2 {[%clk
0:00:30.1]} 33... Nxh4+ {[%clk 0:00:35.4]} 34. Rxh4 {[%clk 0:00:31]} 34... Rxc2
{[%clk 0:00:34.7]} 35. Rxa7 {[%clk 0:00:18.8]} 35... Rxd4 {[%clk 0:00:34.2]} 36.
Ra8 {[%clk 0:00:18.8]} 36... f5 {[%clk 0:00:27.4]} 37. Rhh8 {[%clk 0:00:11.2]}
37... Rxg4+ {[%clk 0:00:24.2]} 38. Kf3 {[%clk 0:00:12.1]} 38... Rc3+ {[%clk
0:00:24.5]} 39. Ke2 {[%clk 0:00:11.9]} 39... Re4+ {[%clk 0:00:24.7]} 40. Kd2
{[%clk 0:00:12.4]} 40... Rf3 {[%clk 0:00:24.6]} 41. Rh2 {[%clk 0:00:10.2]} 41...
Rd4+ {[%clk 0:00:19.6]} 42. Ke2 {[%clk 0:00:11.1]} 42... Rc3 {[%clk 0:00:19.6]}
43. Ra6 {[%clk 0:00:10.7]} 43... Rb4 {[%clk 0:00:19.4]} 44. a3 {[%clk
0:00:10.2]} 44... Rb2+ {[%clk 0:00:19.5]} 45. Kf1 {[%clk 0:00:10.8]} 45... Rcc2
{[%clk 0:00:18.9]} 46. a4 {[%clk 0:00:10.8]} 46... g5 {[%clk 0:00:16.6]} 47. Kg1
{[%clk 0:00:11.1]} 47... Kg6 {[%clk 0:00:16.6]} 48. a5 {[%clk 0:00:10.8]} 48...
f6 {[%clk 0:00:14.9]} 49. axb6 {[%clk 0:00:08.7]} 49... Rc6 {[%clk 0:00:12]} 50.
Rh8 {[%clk 0:00:05.7]} 50... Rcxb6 {[%clk 0:00:11.8]} 51. Ra7 {[%clk 0:00:05.9]}
51... Rb7 {[%clk 0:00:11.3]} 52. Raa8 {[%clk 0:00:04.5]} 52... f4 {[%clk
0:00:11.4]} 53. Rhg8+ {[%clk 0:00:04.5]} 53... Kf5 {[%clk 0:00:11.8]} 54. Ra5+
{[%clk 0:00:04.6]} 54... R2b5 {[%clk 0:00:11.9]} 55. Ra6 {[%clk 0:00:05.5]}
55... R7b6 {[%clk 0:00:11.9]} 56. Ra7 {[%clk 0:00:05.7]} 56... Kg4 {[%clk
0:00:12]} 57. Kg2 {[%clk 0:00:04.6]} 57... f3+ {[%clk 0:00:11.4]} 58. Kh2 {[%clk
0:00:05.1]} 58... Rb2 {[%clk 0:00:10]} 59. Ra4+ {[%clk 0:00:05.4]} 59... R6b4
{[%clk 0:00:10.3]} 60. Rxb4+ {[%clk 0:00:05.4]} 60... Rxb4 {[%clk 0:00:11.2]}
61. Rf8 {[%clk 0:00:04.5]} 61... f5 {[%clk 0:00:11.3]} 62. Rc8 {[%clk
0:00:03.1]} 62... Rb1 {[%clk 0:00:10.6]} 63. Rc4+ {[%clk 0:00:03]} 63... f4
{[%clk 0:00:09.7]} 64. Rc2 {[%clk 0:00:02.9]} 64... Re1 {[%clk 0:00:08.7]} 65.
Ra2 {[%clk 0:00:03.4]} 65... Re2 {[%clk 0:00:08.7]} 0-1

[Event "*** SCC Grand Prix: Titled Tuesday Blitz"]
[Site "Chess.com"]
[Date "2020.07.21"]
[Round "8"]
[White "Shushik"]
[Black "eljanov"]
[Result "1/2-1/2"]
[WhiteElo "2242"]
[BlackElo "2816"]
[TimeControl "180+1"]
[EndTime "11:37:20 PDT"]
[Termination "Game drawn by repetition"]

1. e4 {[%clk 0:03:00.9]} 1... c6 {[%clk 0:02:59.3]} 2. d4 {[%clk 0:03:00.4]}
2... d5 {[%clk 0:02:59.2]} 3. Nc3 {[%clk 0:03:00.6]} 3... dxe4 {[%clk
0:02:59.2]} 4. Nxe4 {[%clk 0:03:00.7]} 4... Bf5 {[%clk 0:02:59.4]} 5. Ng3 {[%clk
0:03:00.7]} 5... Bg6 {[%clk 0:02:59.2]} 6. Nf3 {[%clk 0:03:01]} 6... Nf6 {[%clk
0:02:58.9]} 7. Bd3 {[%clk 0:03:00.9]} 7... e6 {[%clk 0:02:57.9]} 8. O-O {[%clk
0:03:00.6]} 8... Nbd7 {[%clk 0:02:57.7]} 9. c4 {[%clk 0:03:00.3]} 9... Bd6
{[%clk 0:02:56.2]} 10. b3 {[%clk 0:02:59.4]} 10... O-O {[%clk 0:02:54.4]} 11.
Bb2 {[%clk 0:02:59.2]} 11... Qc7 {[%clk 0:02:48.9]} 12. Rc1 {[%clk 0:02:49]}
12... Rad8 {[%clk 0:02:47.6]} 13. Bxg6 {[%clk 0:02:37.2]} 13... hxg6 {[%clk
0:02:47.5]} 14. Qe2 {[%clk 0:02:37.2]} 14... Rfe8 {[%clk 0:02:33.8]} 15. Rfe1
{[%clk 0:02:23.1]} 15... c5 {[%clk 0:02:27.6]} 16. dxc5 {[%clk 0:02:20.8]} 16...
Bxc5 {[%clk 0:02:24.8]} 17. Ne5 {[%clk 0:02:16.3]} 17... Nxe5 {[%clk 0:02:13.3]}
18. Bxe5 {[%clk 0:02:15.3]} 18... Qb6 {[%clk 0:02:13.8]} 19. Bxf6 {[%clk
0:02:11.9]} 19... gxf6 {[%clk 0:02:12.3]} 20. Ne4 {[%clk 0:02:11.8]} 20... Be7
{[%clk 0:02:07.4]} 21. Red1 {[%clk 0:01:59.1]} 21... f5 {[%clk 0:02:06.8]} 22.
Nc3 {[%clk 0:01:55.1]} 22... a6 {[%clk 0:01:54]} 23. Rxd8 {[%clk 0:01:50]} 23...
Rxd8 {[%clk 0:01:54.9]} 24. Rd1 {[%clk 0:01:49.7]} 24... Bf6 {[%clk 0:01:52.3]}
25. Na4 {[%clk 0:01:42.1]} 25... Rxd1+ {[%clk 0:01:47.1]} 26. Qxd1 {[%clk
0:01:40.9]} 26... Qd4 {[%clk 0:01:48]} 27. Qxd4 {[%clk 0:01:38]} 27... Bxd4
{[%clk 0:01:48.9]} 28. c5 {[%clk 0:01:29.7]} 28... Kf8 {[%clk 0:01:45.2]} 29.
Nb6 {[%clk 0:01:26.3]} 29... Ke7 {[%clk 0:01:40.8]} 30. Nc8+ {[%clk 0:01:21.6]}
30... Kd7 {[%clk 0:01:32.3]} 31. Nd6 {[%clk 0:01:20.1]} 31... Kc6 {[%clk
0:01:07.6]} 32. Nxf7 {[%clk 0:01:11.3]} 32... Kxc5 {[%clk 0:01:05.5]} 33. Nd8
{[%clk 0:01:10.9]} 33... Kd5 {[%clk 0:01:06]} 34. Kf1 {[%clk 0:01:01.5]} 34...
b5 {[%clk 0:00:57.3]} 35. Ke2 {[%clk 0:01:00.8]} 35... e5 {[%clk 0:00:57.5]} 36.
Nf7 {[%clk 0:00:56.4]} 36... e4 {[%clk 0:00:56.1]} 37. h4 {[%clk 0:00:53.2]}
37... Bf6 {[%clk 0:00:55.2]} 38. g3 {[%clk 0:00:41]} 38... Kc5 {[%clk
0:00:51.5]} 39. f3 {[%clk 0:00:33.4]} 39... exf3+ {[%clk 0:00:49.5]} 40. Kxf3
{[%clk 0:00:33.3]} 40... Kb4 {[%clk 0:00:50.1]} 41. Nd6 {[%clk 0:00:31]} 41...
Ka3 {[%clk 0:00:49.1]} 42. Ne8 {[%clk 0:00:28.1]} 42... Be5 {[%clk 0:00:49]} 43.
g4 {[%clk 0:00:25.9]} 43... fxg4+ {[%clk 0:00:47.8]} 44. Kxg4 {[%clk 0:00:25.9]}
44... Kxa2 {[%clk 0:00:48.2]} 45. Kg5 {[%clk 0:00:26]} 45... Bg3 {[%clk
0:00:45.7]} 46. Kxg6 {[%clk 0:00:22.2]} 46... Bxh4 {[%clk 0:00:45.2]} 47. Nc7
{[%clk 0:00:22.2]} 47... a5 {[%clk 0:00:34.5]} 48. Nxb5 {[%clk 0:00:20.9]} 48...
Kxb3 {[%clk 0:00:34.9]} 49. Kf5 {[%clk 0:00:20.1]} 49... a4 {[%clk 0:00:31.3]}
50. Ke4 {[%clk 0:00:19.9]} 50... Kc4 {[%clk 0:00:29.7]} 51. Na3+ {[%clk
0:00:19.2]} 51... Kb4 {[%clk 0:00:24]} 52. Nb1 {[%clk 0:00:18.5]} 52... Be1
{[%clk 0:00:19.7]} 53. Kd3 {[%clk 0:00:17.8]} 53... Kb3 {[%clk 0:00:20.1]} 54.
Kd4 {[%clk 0:00:12.2]} 54... Bb4 {[%clk 0:00:15.7]} 55. Kd3 {[%clk 0:00:11.7]}
55... Kb2 {[%clk 0:00:15.5]} 56. Kc4 {[%clk 0:00:10.5]} 56... Be1 {[%clk
0:00:10.6]} 57. Kb5 {[%clk 0:00:09.7]} 57... Kb3 {[%clk 0:00:11]} 58. Kc5 {[%clk
0:00:07.9]} 58... Ba5 {[%clk 0:00:11]} 59. Kb5 {[%clk 0:00:07.6]} 59... Bb4
{[%clk 0:00:11]} 60. Kb6 {[%clk 0:00:05.9]} 60... Kc4 {[%clk 0:00:10.7]} 61. Kc6
{[%clk 0:00:04.4]} 61... Bc5 {[%clk 0:00:10.8]} 62. Nd2+ {[%clk 0:00:02.7]}
62... Kb4 {[%clk 0:00:10.2]} 63. Nb1 {[%clk 0:00:02.7]} 63... Bf2 {[%clk
0:00:08.9]} 64. Nd2 {[%clk 0:00:02.2]} 64... Kc3 {[%clk 0:00:06.4]} 65. Nb1+
{[%clk 0:00:02.1]} 65... Kb4 {[%clk 0:00:06]} 66. Kd5 {[%clk 0:00:01.5]} 66...
Kb3 {[%clk 0:00:03.5]} 67. Kc6 {[%clk 0:00:01.6]} 67... Kb4 {[%clk 0:00:03]}
1/2-1/2

[Event "*** SCC Grand Prix: Titled Tuesday Blitz"]
[Site "Chess.com"]
[Date "2020.07.21"]
[Round "8"]
[White "chargemax23"]
[Black "Batsai"]
[Result "1-0"]
[WhiteElo "2599"]
[BlackElo "2360"]
[TimeControl "180+1"]
[EndTime "11:37:25 PDT"]
[Termination "chargemax23 won by resignation"]

1. e4 {[%clk 0:03:00.9]} 1... c6 {[%clk 0:02:57.5]} 2. Nc3 {[%clk 0:03:00.4]}
2... d5 {[%clk 0:02:57.6]} 3. Nf3 {[%clk 0:03:01.1]} 3... Nf6 {[%clk 0:02:54.2]}
4. e5 {[%clk 0:02:57.2]} 4... Ne4 {[%clk 0:02:54.5]} 5. d3 {[%clk 0:02:50.9]}
5... Nxc3 {[%clk 0:02:54]} 6. bxc3 {[%clk 0:02:50.7]} 6... Bg4 {[%clk
0:02:54.6]} 7. h3 {[%clk 0:02:49.7]} 7... Bh5 {[%clk 0:02:54]} 8. d4 {[%clk
0:02:43.5]} 8... e6 {[%clk 0:02:53.4]} 9. Bd3 {[%clk 0:02:42.6]} 9... Bg6 {[%clk
0:02:52.2]} 10. O-O {[%clk 0:02:42]} 10... Be7 {[%clk 0:02:44.4]} 11. a4 {[%clk
0:02:41.2]} 11... c5 {[%clk 0:02:42.2]} 12. Rb1 {[%clk 0:02:38.9]} 12... b6
{[%clk 0:02:41.3]} 13. g3 {[%clk 0:02:24.5]} 13... O-O {[%clk 0:02:38.1]} 14. h4
{[%clk 0:02:24.2]} 14... Nc6 {[%clk 0:02:36.3]} 15. Be3 {[%clk 0:02:19]} 15...
Na5 {[%clk 0:02:34]} 16. Kg2 {[%clk 0:02:11.2]} 16... Qd7 {[%clk 0:02:26.3]} 17.
Rb5 {[%clk 0:02:03.8]} 17... Nc4 {[%clk 0:02:21.6]} 18. Bxc4 {[%clk 0:01:51.1]}
18... dxc4 {[%clk 0:02:22.5]} 19. dxc5 {[%clk 0:01:50.5]} 19... Qc6 {[%clk
0:02:17.7]} 20. cxb6 {[%clk 0:01:45.9]} 20... axb6 {[%clk 0:02:08.6]} 21. Rxb6
{[%clk 0:01:45.5]} 21... Qxa4 {[%clk 0:02:07.1]} 22. Nd4 {[%clk 0:01:25.2]}
22... Bc5 {[%clk 0:02:01.7]} 23. Rb2 {[%clk 0:01:19]} 23... Rfb8 {[%clk
0:01:55.7]} 24. Rxb8+ {[%clk 0:01:00.2]} 24... Rxb8 {[%clk 0:01:56.6]} 25. Qa1
{[%clk 0:01:00.4]} 25... Qd7 {[%clk 0:01:47.4]} 26. Rd1 {[%clk 0:00:54.8]} 26...
Qb7+ {[%clk 0:01:39.5]} 27. f3 {[%clk 0:00:53.5]} 27... h6 {[%clk 0:01:37.7]}
28. g4 {[%clk 0:00:52]} 28... Qb2 {[%clk 0:01:35]} 29. h5 {[%clk 0:00:37]} 29...
Bxc2 {[%clk 0:01:31.1]} 30. Qxb2 {[%clk 0:00:33.4]} 30... Rxb2 {[%clk
0:01:30.5]} 31. Rd2 {[%clk 0:00:33.3]} 31... Bxd4 {[%clk 0:01:25.4]} 32. Bxd4
{[%clk 0:00:33.1]} 32... Ra2 {[%clk 0:01:25.3]} 33. Kg3 {[%clk 0:00:32.7]} 33...
Bb3 {[%clk 0:01:14.3]} 34. Be3 {[%clk 0:00:29.5]} 34... Ra8 {[%clk 0:01:06.5]}
35. Rd7 {[%clk 0:00:28.2]} 35... Ba4 {[%clk 0:01:04.9]} 36. Rc7 {[%clk
0:00:27.4]} 36... Bb3 {[%clk 0:01:04.9]} 37. f4 {[%clk 0:00:26.2]} 37... Rd8
{[%clk 0:01:04.1]} 38. Bd4 {[%clk 0:00:25.9]} 38... Ba2 {[%clk 0:00:58.5]} 39.
g5 {[%clk 0:00:25.9]} 39... Rb8 {[%clk 0:00:53.8]} 40. f5 {[%clk 0:00:20.1]}
40... hxg5 {[%clk 0:00:51.2]} 41. f6 {[%clk 0:00:12.2]} 41... Bb1 {[%clk
0:00:40.7]} 42. Kg4 {[%clk 0:00:10.9]} 42... g6 {[%clk 0:00:27.5]} 43. Kxg5
{[%clk 0:00:09.9]} 43... gxh5 {[%clk 0:00:27.3]} 44. Kxh5 {[%clk 0:00:10.2]}
44... Bg6+ {[%clk 0:00:26.9]} 45. Kg5 {[%clk 0:00:10.2]} 45... Bd3 {[%clk
0:00:27.5]} 46. Bc5 {[%clk 0:00:08.9]} 46... Bg6 {[%clk 0:00:24.3]} 47. Kf4
{[%clk 0:00:08.3]} 47... Kh7 {[%clk 0:00:23.5]} 48. Ke3 {[%clk 0:00:08]} 48...
Bh5 {[%clk 0:00:23.4]} 49. Bd6 {[%clk 0:00:07.3]} 49... Rb1 {[%clk 0:00:20.7]}
50. Rxc4 {[%clk 0:00:07.1]} 50... Kg6 {[%clk 0:00:20.5]} 51. Rc8 {[%clk
0:00:06.6]} 51... Kf5 {[%clk 0:00:20.5]} 52. Kd4 {[%clk 0:00:06.5]} 52... Rd1+
{[%clk 0:00:20.3]} 53. Kc5 {[%clk 0:00:06.2]} 53... Rd5+ {[%clk 0:00:19.4]} 54.
Kb4 {[%clk 0:00:06.5]} 54... Rd1 {[%clk 0:00:19.1]} 55. c4 {[%clk 0:00:06.7]}
55... Rb1+ {[%clk 0:00:20]} 56. Kc5 {[%clk 0:00:06.8]} 56... Bf3 {[%clk
0:00:20.3]} 57. Rc7 {[%clk 0:00:06.1]} 57... Bh5 {[%clk 0:00:19.5]} 58. Kd4
{[%clk 0:00:05.6]} 58... Rd1+ {[%clk 0:00:19.2]} 59. Kc3 {[%clk 0:00:05.8]}
59... Ke4 {[%clk 0:00:19.5]} 60. c5 {[%clk 0:00:04.7]} 60... Rc1+ {[%clk
0:00:19.7]} 61. Kb4 {[%clk 0:00:04.3]} 61... Kd5 {[%clk 0:00:19.7]} 62. Kb5
{[%clk 0:00:04.7]} 62... Rb1+ {[%clk 0:00:18.7]} 63. Ka6 {[%clk 0:00:04.7]}
63... Ra1+ {[%clk 0:00:18.1]} 64. Kb7 {[%clk 0:00:04.9]} 64... Rb1+ {[%clk
0:00:18.3]} 65. Kc8 {[%clk 0:00:04.2]} 65... Bg6 {[%clk 0:00:18.8]} 66. Kd7
{[%clk 0:00:05.1]} 66... Rb8 {[%clk 0:00:17]} 67. Ke7 {[%clk 0:00:04.9]} 67...
Rg8 {[%clk 0:00:16.2]} 68. c6 {[%clk 0:00:05]} 68... Ra8 {[%clk 0:00:16.1]} 69.
Kd7 {[%clk 0:00:05.3]} 69... Rg8 {[%clk 0:00:15.8]} 70. Rb7 {[%clk 0:00:05.6]}
70... Bc2 {[%clk 0:00:12.2]} 71. c7 {[%clk 0:00:05.8]} 71... Ba4+ {[%clk
0:00:11.7]} 72. Ke7 {[%clk 0:00:06.2]} 72... Kc6 {[%clk 0:00:08.8]} 73. Rb8
{[%clk 0:00:06]} 1-0

[Event "*** SCC Grand Prix: Titled Tuesday Blitz"]
[Site "Chess.com"]
[Date "2020.07.21"]
[Round "8"]
[White "Duhless"]
[Black "Dedic8"]
[Result "0-1"]
[WhiteElo "2950"]
[BlackElo "2797"]
[TimeControl "180+1"]
[EndTime "11:37:28 PDT"]
[Termination "Dedic8 won on time"]

1. c4 {[%clk 0:03:00.9]} 1... e5 {[%clk 0:03:00.3]} 2. Nc3 {[%clk 0:03:00.7]}
2... Bb4 {[%clk 0:03:00.9]} 3. Nd5 {[%clk 0:03:00.1]} 3... Be7 {[%clk
0:03:01.1]} 4. d4 {[%clk 0:02:58.1]} 4... d6 {[%clk 0:02:59.9]} 5. e4 {[%clk
0:02:57]} 5... exd4 {[%clk 0:02:48.8]} 6. Qxd4 {[%clk 0:02:54.4]} 6... Nf6
{[%clk 0:02:49.5]} 7. Nxe7 {[%clk 0:02:54.1]} 7... Qxe7 {[%clk 0:02:50.4]} 8. f3
{[%clk 0:02:53.6]} 8... Nc6 {[%clk 0:02:50.6]} 9. Qc3 {[%clk 0:02:51.5]} 9...
Bd7 {[%clk 0:02:28.2]} 10. Ne2 {[%clk 0:02:49.1]} 10... O-O-O {[%clk 0:02:23]}
11. Be3 {[%clk 0:02:48]} 11... Kb8 {[%clk 0:02:22.6]} 12. O-O-O {[%clk
0:02:41.3]} 12... Rhe8 {[%clk 0:02:22.4]} 13. Ng3 {[%clk 0:02:39.5]} 13... Qe5
{[%clk 0:02:09.7]} 14. Qxe5 {[%clk 0:02:38.7]} 14... dxe5 {[%clk 0:02:10.6]} 15.
Be2 {[%clk 0:02:36.8]} 15... Be6 {[%clk 0:02:10.8]} 16. Rxd8+ {[%clk 0:02:25.5]}
16... Rxd8 {[%clk 0:02:10.6]} 17. Rd1 {[%clk 0:02:26.1]} 17... Rxd1+ {[%clk
0:02:04]} 18. Kxd1 {[%clk 0:02:25.9]} 18... a5 {[%clk 0:02:04.4]} 19. Kd2 {[%clk
0:02:23.5]} 19... b6 {[%clk 0:01:52.7]} 20. Kc3 {[%clk 0:02:21.4]} 20... Ne7
{[%clk 0:01:41.7]} 21. c5 {[%clk 0:02:11.6]} 21... Kb7 {[%clk 0:01:33.4]} 22. b3
{[%clk 0:02:06.5]} 22... Kc6 {[%clk 0:01:23.8]} 23. cxb6 {[%clk 0:02:05.3]}
23... cxb6 {[%clk 0:01:24.7]} 24. Nf1 {[%clk 0:01:58.3]} 24... Nd7 {[%clk
0:01:19.6]} 25. Nd2 {[%clk 0:01:55.7]} 25... Nc5 {[%clk 0:01:15.8]} 26. a3
{[%clk 0:01:19.4]} 26... Nc8 {[%clk 0:01:12.8]} 27. Nc4 {[%clk 0:01:00.8]} 27...
f6 {[%clk 0:01:11.9]} 28. h4 {[%clk 0:00:51.9]} 28... Na7 {[%clk 0:01:04.1]} 29.
a4 {[%clk 0:00:37.1]} 29... Nc8 {[%clk 0:01:02.3]} 30. Bd1 {[%clk 0:00:33.5]}
30... Nd6 {[%clk 0:00:51.8]} 31. Nxd6 {[%clk 0:00:32.9]} 31... Kxd6 {[%clk
0:00:52.7]} 32. b4 {[%clk 0:00:31.2]} 32... axb4+ {[%clk 0:00:53.6]} 33. Kxb4
{[%clk 0:00:32.1]} 33... Kc6 {[%clk 0:00:53.5]} 34. Be2 {[%clk 0:00:25.5]} 34...
Nd7 {[%clk 0:00:28.8]} 35. Bb5+ {[%clk 0:00:23.1]} 35... Kc7 {[%clk 0:00:29.2]}
36. g3 {[%clk 0:00:20.5]} 36... Nb8 {[%clk 0:00:29.3]} 37. Kc3 {[%clk 0:00:18]}
37... Nc6 {[%clk 0:00:29.3]} 38. Bc4 {[%clk 0:00:18.2]} 38... Bd7 {[%clk
0:00:23.2]} 39. g4 {[%clk 0:00:16.3]} 39... Nd8 {[%clk 0:00:22.1]} 40. Kb4
{[%clk 0:00:14.6]} 40... Nc6+ {[%clk 0:00:21.8]} 41. Kc3 {[%clk 0:00:14.5]}
41... Na5 {[%clk 0:00:20.3]} 42. Bb5 {[%clk 0:00:11.1]} 42... Be6 {[%clk
0:00:20.3]} 43. g5 {[%clk 0:00:09.9]} 43... Nc6 {[%clk 0:00:19.2]} 44. gxf6
{[%clk 0:00:09.5]} 44... gxf6 {[%clk 0:00:19.5]} 45. f4 {[%clk 0:00:09.3]} 45...
exf4 {[%clk 0:00:18]} 46. Bxf4+ {[%clk 0:00:10.2]} 46... Ne5 {[%clk 0:00:18.6]}
47. Bh6 {[%clk 0:00:07.5]} 47... Nd7 {[%clk 0:00:17]} 48. Bf4+ {[%clk
0:00:05.6]} 48... Ne5 {[%clk 0:00:17]} 49. Bh6 {[%clk 0:00:05.5]} 49... Nd7
{[%clk 0:00:16.6]} 50. Kd4 {[%clk 0:00:05.7]} 50... Kd6 {[%clk 0:00:14.7]} 51.
Bg7 {[%clk 0:00:05.9]} 51... Ke7 {[%clk 0:00:12.9]} 52. Bc4 {[%clk 0:00:05.1]}
52... Nc5 {[%clk 0:00:10]} 53. Bxe6 {[%clk 0:00:04.5]} 53... Kxe6 {[%clk
0:00:10.2]} 54. Bf8 {[%clk 0:00:02.9]} 54... Nxa4 {[%clk 0:00:10]} 55. Kc4
{[%clk 0:00:02.9]} 55... Nc5 {[%clk 0:00:09.7]} 56. Kd4 {[%clk 0:00:02.2]} 56...
Nd7 {[%clk 0:00:09.4]} 57. Bb4 {[%clk 0:00:01.8]} 57... Ne5 {[%clk 0:00:08.8]}
58. Ke3 {[%clk 0:00:02.1]} 58... Nc6 {[%clk 0:00:08]} 59. Bc3 {[%clk 0:00:02.2]}
59... b5 {[%clk 0:00:08.5]} 60. Bb2 {[%clk 0:00:02.3]} 60... Na5 {[%clk
0:00:07.9]} 61. Kd4 {[%clk 0:00:01.9]} 61... Nb7 {[%clk 0:00:05.2]} 62. Bc3
{[%clk 0:00:02]} 62... Nd6 {[%clk 0:00:05.4]} 63. Bb4 {[%clk 0:00:02.3]} 63...
Nf7 {[%clk 0:00:04.6]} 64. Ke3 {[%clk 0:00:02.3]} 64... Ne5 {[%clk 0:00:04.6]}
65. Bc3 {[%clk 0:00:02.1]} 65... Nc6 {[%clk 0:00:05.5]} 66. Kd3 {[%clk
0:00:02.3]} 66... b4 {[%clk 0:00:04.7]} 67. Bb2 {[%clk 0:00:02.3]} 67... Kf7
{[%clk 0:00:05.1]} 68. Kc4 {[%clk 0:00:02.2]} 68... Ke6 {[%clk 0:00:05.3]} 69.
Kb5 {[%clk 0:00:02]} 69... Ne5 {[%clk 0:00:05.2]} 70. Bd4 {[%clk 0:00:01.2]}
70... Nf3 {[%clk 0:00:05.2]} 71. Bf2 {[%clk 0:00:01.4]} 71... b3 {[%clk
0:00:05.6]} 0-1